[Event "*** Titled Tuesday Blitz"]
[Site "Chess.com"]
[Date "2021.04.06"]
[Round "8"]
[White "eduardoperalta"]
[Black "pastouche06"]
[Result "0-1"]
[WhiteElo "2491"]
[BlackElo "2610"]
[TimeControl "180+1"]
[EndTime "11:29:37 PDT"]
[Termination "pastouche06 won on time"]

1. d4 {[%clk 0:03:00.9]} 1... d5 {[%clk 0:02:58.3]} 2. Nf3 {[%clk 0:02:59.5]}
2... Nf6 {[%clk 0:02:57]} 3. c4 {[%clk 0:02:59.3]} 3... e6 {[%clk 0:02:57.4]} 4.
Nc3 {[%clk 0:02:58.5]} 4... a6 {[%clk 0:02:56.2]} 5. cxd5 {[%clk 0:02:54.3]}
5... exd5 {[%clk 0:02:55.5]} 6. Bg5 {[%clk 0:02:54.1]} 6... Be6 {[%clk
0:02:55.7]} 7. e3 {[%clk 0:02:53.9]} 7... Nbd7 {[%clk 0:02:54.1]} 8. Bd3 {[%clk
0:02:53.6]} 8... Bd6 {[%clk 0:02:52.8]} 9. O-O {[%clk 0:02:52.9]} 9... c6 {[%clk
0:02:53]} 10. Rc1 {[%clk 0:02:47.3]} 10... Qc7 {[%clk 0:02:47.2]} 11. Re1 {[%clk
0:02:43.9]} 11... O-O {[%clk 0:02:44.3]} 12. Bb1 {[%clk 0:02:41.3]} 12... Bg4
{[%clk 0:02:31]} 13. h3 {[%clk 0:02:39.6]} 13... Bh5 {[%clk 0:02:31]} 14. g4
{[%clk 0:02:28.2]} 14... Bg6 {[%clk 0:02:30.5]} 15. Bxg6 {[%clk 0:02:26.2]}
15... hxg6 {[%clk 0:02:31.4]} 16. Bxf6 {[%clk 0:02:20.6]} 16... Nxf6 {[%clk
0:02:25.1]} 17. e4 {[%clk 0:02:18.9]} 17... dxe4 {[%clk 0:02:19.6]} 18. Nxe4
{[%clk 0:02:16.7]} 18... Nxe4 {[%clk 0:02:10.1]} 19. Rxe4 {[%clk 0:02:15.6]}
19... Rfe8 {[%clk 0:02:04.7]} 20. Qe2 {[%clk 0:02:14.2]} 20... Rxe4 {[%clk
0:01:55.8]} 21. Qxe4 {[%clk 0:02:13.7]} 21... Qa5 {[%clk 0:01:56.3]} 22. a3
{[%clk 0:02:08.4]} 22... Rd8 {[%clk 0:01:56.3]} 23. Kg2 {[%clk 0:02:07.5]} 23...
Bf8 {[%clk 0:01:49]} 24. Re1 {[%clk 0:01:59.6]} 24... Qd5 {[%clk 0:01:39.2]} 25.
Qxd5 {[%clk 0:01:58.3]} 25... Rxd5 {[%clk 0:01:38.8]} 26. Re8 {[%clk 0:01:56.8]}
26... f6 {[%clk 0:01:38.1]} 27. Rb8 {[%clk 0:01:55.4]} 27... Rd7 {[%clk
0:01:37.6]} 28. Rc8 {[%clk 0:01:47.3]} 28... Kf7 {[%clk 0:01:36.5]} 29. Kf1
{[%clk 0:01:43.4]} 29... g5 {[%clk 0:01:26.9]} 30. Ke2 {[%clk 0:01:42.7]} 30...
Bd6 {[%clk 0:01:27]} 31. Kd3 {[%clk 0:01:41.5]} 31... Bf4 {[%clk 0:01:25.6]} 32.
b4 {[%clk 0:01:38]} 32... Rd5 {[%clk 0:01:17]} 33. Kc4 {[%clk 0:01:34.9]} 33...
a5 {[%clk 0:01:14.6]} 34. Ra8 {[%clk 0:01:28.4]} 34... axb4 {[%clk 0:01:14.1]}
35. axb4 {[%clk 0:01:28]} 35... Bd6 {[%clk 0:01:12.3]} 36. Ra5 {[%clk
0:01:22.7]} 36... Rxa5 {[%clk 0:00:54.5]} 37. bxa5 {[%clk 0:01:22.1]} 37... Bc7
{[%clk 0:00:55.1]} 38. Kb4 {[%clk 0:00:46]} 38... Ke6 {[%clk 0:00:50.9]} 39. a6
{[%clk 0:00:37.5]} 39... Bd6+ {[%clk 0:00:44.4]} 40. Ka5 {[%clk 0:00:34.1]}
40... bxa6 {[%clk 0:00:45.3]} 41. Kxa6 {[%clk 0:00:31.5]} 41... Kd5 {[%clk
0:00:44.8]} 42. Kb7 {[%clk 0:00:28.6]} 42... c5 {[%clk 0:00:40.1]} 43. dxc5
{[%clk 0:00:28.2]} 43... Bxc5 {[%clk 0:00:41]} 44. h4 {[%clk 0:00:18]} 44... Ke4
{[%clk 0:00:30.2]} 45. Nd2+ {[%clk 0:00:17.2]} 45... Kd3 {[%clk 0:00:30.2]} 46.
hxg5 {[%clk 0:00:04.9]} 46... Kxd2 {[%clk 0:00:29.7]} 47. gxf6 {[%clk
0:00:04.7]} 47... gxf6 {[%clk 0:00:29.8]} 48. f4 {[%clk 0:00:04.9]} 48... Ke3
{[%clk 0:00:22.4]} 49. g5 {[%clk 0:00:02]} 49... f5 {[%clk 0:00:22.7]} 0-1

[Event "*** Titled Tuesday Blitz"]
[Site "Chess.com"]
[Date "2021.04.06"]
[Round "8"]
[White "politeplayer"]
[Black "davigator"]
[Result "1/2-1/2"]
[WhiteElo "2258"]
[BlackElo "2368"]
[TimeControl "180+1"]
[EndTime "11:29:37 PDT"]
[Termination "Game drawn by repetition"]

1. e4 {[%clk 0:02:57.4]} 1... c5 {[%clk 0:02:58.6]} 2. Nf3 {[%clk 0:02:56.9]}
2... Nc6 {[%clk 0:02:58.7]} 3. d4 {[%clk 0:02:52.6]} 3... cxd4 {[%clk
0:02:58.3]} 4. Nxd4 {[%clk 0:02:49.1]} 4... Nf6 {[%clk 0:02:58.7]} 5. Nc3 {[%clk
0:02:48.7]} 5... d6 {[%clk 0:02:58.5]} 6. Bc4 {[%clk 0:02:47.2]} 6... Bd7 {[%clk
0:02:58.1]} 7. Bb3 {[%clk 0:02:44.4]} 7... a6 {[%clk 0:02:58]} 8. O-O {[%clk
0:02:43.5]} 8... e6 {[%clk 0:02:53.7]} 9. Kh1 {[%clk 0:02:40]} 9... Be7 {[%clk
0:02:53.3]} 10. f4 {[%clk 0:02:39.5]} 10... O-O {[%clk 0:02:53.3]} 11. f5 {[%clk
0:02:35.8]} 11... e5 {[%clk 0:02:49.8]} 12. Nf3 {[%clk 0:02:24.7]} 12... b5
{[%clk 0:02:49.6]} 13. a3 {[%clk 0:02:24.3]} 13... Rc8 {[%clk 0:02:47.5]} 14.
Bg5 {[%clk 0:02:21.3]} 14... Ng4 {[%clk 0:02:34]} 15. Bxe7 {[%clk 0:02:16.8]}
15... Qxe7 {[%clk 0:02:34.1]} 16. Nd5 {[%clk 0:02:16]} 16... Qd8 {[%clk
0:02:34.3]} 17. Qd2 {[%clk 0:02:01.3]} 17... Na5 {[%clk 0:02:24]} 18. Rad1
{[%clk 0:01:51.7]} 18... Nc4 {[%clk 0:02:18.8]} 19. Bxc4 {[%clk 0:01:50.8]}
19... Rxc4 {[%clk 0:02:18.7]} 20. h3 {[%clk 0:01:45.8]} 20... Nf6 {[%clk
0:02:09.4]} 21. Nxf6+ {[%clk 0:01:45.9]} 21... Qxf6 {[%clk 0:02:08.9]} 22. Qxd6
{[%clk 0:01:46.4]} 22... Bc6 {[%clk 0:02:07.4]} 23. Nxe5 {[%clk 0:01:38.6]}
23... Rxc2 {[%clk 0:02:06.9]} 24. Qxf6 {[%clk 0:01:18.4]} 24... gxf6 {[%clk
0:02:06.3]} 25. Nxc6 {[%clk 0:01:18.4]} 25... Rxc6 {[%clk 0:02:05.5]} 26. Rd2
{[%clk 0:01:10.3]} 26... Re8 {[%clk 0:02:05.2]} 27. Re1 {[%clk 0:01:02.9]} 27...
Re5 {[%clk 0:02:01.8]} 28. Kg1 {[%clk 0:00:57.4]} 28... Kg7 {[%clk 0:02:01.1]}
29. Kf2 {[%clk 0:00:56.9]} 29... h5 {[%clk 0:02:00.3]} 30. Kf3 {[%clk
0:00:53.1]} 30... Rc4 {[%clk 0:01:59.3]} 31. h4 {[%clk 0:00:44.9]} 31... a5
{[%clk 0:01:57.5]} 32. Ree2 {[%clk 0:00:43.7]} 32... b4 {[%clk 0:01:56.8]} 33.
axb4 {[%clk 0:00:40.5]} 33... Rxb4 {[%clk 0:01:56.5]} 34. Rd3 {[%clk 0:00:34.6]}
34... Reb5 {[%clk 0:01:54.2]} 35. Ra3 {[%clk 0:00:33]} 35... a4 {[%clk
0:01:50.3]} 36. Ra2 {[%clk 0:00:30.6]} 36... Re5 {[%clk 0:01:47.2]} 37. Re3
{[%clk 0:00:28.1]} 37... Kf8 {[%clk 0:01:45.3]} 38. Raa3 {[%clk 0:00:24.3]}
38... Kg7 {[%clk 0:01:41.2]} 39. b3 {[%clk 0:00:22.4]} 39... axb3 {[%clk
0:01:40.1]} 40. Raxb3 {[%clk 0:00:21.1]} 40... Ra4 {[%clk 0:01:39.4]} 41. Rbd3
{[%clk 0:00:19]} 41... Ra1 {[%clk 0:01:37.2]} 42. Rd2 {[%clk 0:00:18.3]} 42...
Rh1 {[%clk 0:01:35]} 43. g3 {[%clk 0:00:16.9]} 43... Ra1 {[%clk 0:01:31.5]} 44.
Rg2 {[%clk 0:00:16.6]} 44... Rf1+ {[%clk 0:01:27]} 45. Ke2 {[%clk 0:00:16.4]}
45... Ra1 {[%clk 0:01:22.9]} 46. g4 {[%clk 0:00:16.5]} 46... hxg4 {[%clk
0:01:22.2]} 47. Rxg4+ {[%clk 0:00:16.4]} 47... Kf8 {[%clk 0:01:19.6]} 48. Reg3
{[%clk 0:00:15.3]} 48... Rh1 {[%clk 0:01:18.4]} 49. Kf3 {[%clk 0:00:14.5]} 49...
Ra5 {[%clk 0:01:17]} 50. Kg2 {[%clk 0:00:14.4]} 50... Raa1 {[%clk 0:01:13.4]}
51. Rg8+ {[%clk 0:00:14.1]} 51... Ke7 {[%clk 0:01:13.5]} 52. Rb8 {[%clk
0:00:13.5]} 52... Rxh4 {[%clk 0:01:11.9]} 53. Rb7+ {[%clk 0:00:12.8]} 53... Kd6
{[%clk 0:01:11.2]} 54. Rxf7 {[%clk 0:00:12.3]} 54... Ra2+ {[%clk 0:01:00.7]} 55.
Kf3 {[%clk 0:00:11.8]} 55... Ra3+ {[%clk 0:01:00.7]} 56. Kg2 {[%clk 0:00:10.8]}
56... Ra2+ {[%clk 0:00:59.8]} 57. Kf3 {[%clk 0:00:10.9]} 57... Ra3+ {[%clk
0:00:59]} 58. Kg2 {[%clk 0:00:11.1]} 58... Ra2+ {[%clk 0:00:36.9]} 1/2-1/2

[Event "*** Titled Tuesday Blitz"]
[Site "Chess.com"]
[Date "2021.04.06"]
[Round "8"]
[White "NateSolon"]
[Black "Sadykov_Ramil"]
[Result "1-0"]
[WhiteElo "2621"]
[BlackElo "2496"]
[TimeControl "180+1"]
[EndTime "11:29:39 PDT"]
[Termination "NateSolon won by resignation"]

1. d4 {[%clk 0:02:31.4]} 1... d5 {[%clk 0:02:59]} 2. c4 {[%clk 0:02:28]} 2... e6
{[%clk 0:02:59]} 3. Nf3 {[%clk 0:02:26.7]} 3... Nf6 {[%clk 0:02:58.7]} 4. g3
{[%clk 0:02:26.8]} 4... Be7 {[%clk 0:02:57.1]} 5. Bg2 {[%clk 0:02:27]} 5... O-O
{[%clk 0:02:53.8]} 6. O-O {[%clk 0:02:27.1]} 6... dxc4 {[%clk 0:02:54]} 7. Qc2
{[%clk 0:02:27.4]} 7... a6 {[%clk 0:02:48]} 8. a4 {[%clk 0:02:27.4]} 8... Bd7
{[%clk 0:02:40.9]} 9. Qxc4 {[%clk 0:02:26.1]} 9... Bc6 {[%clk 0:02:38.4]} 10.
Bg5 {[%clk 0:02:26]} 10... Nbd7 {[%clk 0:02:34.8]} 11. Nc3 {[%clk 0:02:22.7]}
11... h6 {[%clk 0:02:32.4]} 12. Bxf6 {[%clk 0:02:22.4]} 12... Nxf6 {[%clk
0:02:30.3]} 13. Rfd1 {[%clk 0:02:22.5]} 13... Bd5 {[%clk 0:02:26.4]} 14. Qd3
{[%clk 0:02:22.3]} 14... Bxf3 {[%clk 0:02:24.2]} 15. Bxf3 {[%clk 0:02:21.6]}
15... c6 {[%clk 0:02:22.9]} 16. e3 {[%clk 0:02:20.6]} 16... a5 {[%clk
0:02:09.8]} 17. h4 {[%clk 0:02:20]} 17... Qc7 {[%clk 0:01:56.7]} 18. Kg2 {[%clk
0:02:19.8]} 18... Rfd8 {[%clk 0:01:56.1]} 19. Rac1 {[%clk 0:02:18]} 19... Qb6
{[%clk 0:01:42.1]} 20. Qe2 {[%clk 0:02:09.9]} 20... Rac8 {[%clk 0:01:36.6]} 21.
h5 {[%clk 0:02:05.1]} 21... Nd5 {[%clk 0:01:35.1]} 22. Ne4 {[%clk 0:02:00.2]}
22... Nb4 {[%clk 0:01:17.8]} 23. Rc4 {[%clk 0:01:57.2]} 23... Rd7 {[%clk
0:01:15.4]} 24. Rdc1 {[%clk 0:01:48.8]} 24... Rcd8 {[%clk 0:01:14.9]} 25. Nc5
{[%clk 0:01:37.7]} 25... Bxc5 {[%clk 0:01:13.1]} 26. Rxc5 {[%clk 0:01:38.6]}
26... Ra8 {[%clk 0:00:54.9]} 27. Be4 {[%clk 0:01:37.4]} 27... Qd8 {[%clk
0:00:54.2]} 28. Bb1 {[%clk 0:01:30.4]} 28... Rd5 {[%clk 0:00:52.5]} 29. Qf3
{[%clk 0:01:24.8]} 29... Qg5 {[%clk 0:00:47.6]} 30. Qe4 {[%clk 0:01:18.4]} 30...
Kf8 {[%clk 0:00:43]} 31. Qh7 {[%clk 0:01:09.2]} 31... Ke7 {[%clk 0:00:41.3]} 32.
e4 {[%clk 0:01:09.6]} 32... Rxc5 {[%clk 0:00:33.8]} 33. Rxc5 {[%clk 0:01:10.5]}
33... Qf6 {[%clk 0:00:31.9]} 34. e5 {[%clk 0:01:00.7]} 34... Qg5 {[%clk
0:00:32]} 35. Be4 {[%clk 0:00:56.2]} 35... Rd8 {[%clk 0:00:23.9]} 36. Rc4 {[%clk
0:00:49.1]} 36... f5 {[%clk 0:00:13.5]} 37. exf6+ {[%clk 0:00:47]} 37... Qxf6
{[%clk 0:00:13.8]} 38. Qg6 {[%clk 0:00:33.5]} 38... Qxg6 {[%clk 0:00:11.5]} 39.
Bxg6 {[%clk 0:00:34.4]} 39... Rd5 {[%clk 0:00:09]} 40. Kf3 {[%clk 0:00:32.8]}
40... Kf6 {[%clk 0:00:08.8]} 41. g4 {[%clk 0:00:30.4]} 41... e5 {[%clk 0:00:06]}
42. dxe5+ {[%clk 0:00:28.7]} 42... Rxe5 {[%clk 0:00:06.9]} 43. Rf4+ {[%clk
0:00:28.2]} 43... Ke7 {[%clk 0:00:06.8]} 44. Rf7+ {[%clk 0:00:28.5]} 44... Kd6
{[%clk 0:00:06.3]} 45. Rxg7 {[%clk 0:00:28.9]} 45... b5 {[%clk 0:00:03.8]} 46.
axb5 {[%clk 0:00:28.2]} 46... cxb5 {[%clk 0:00:04.7]} 47. Rh7 {[%clk 0:00:27.6]}
47... a4 {[%clk 0:00:04.5]} 48. Rxh6 {[%clk 0:00:27.8]} 48... Kc5 {[%clk
0:00:02.7]} 49. Rh8 {[%clk 0:00:25.3]} 49... Rd5 {[%clk 0:00:02.5]} 50. Rc8+
{[%clk 0:00:25]} 50... Kb6 {[%clk 0:00:02.7]} 51. h6 {[%clk 0:00:24.2]} 51...
Rd2 {[%clk 0:00:02.2]} 52. h7 {[%clk 0:00:23.8]} 1-0

[Event "*** Titled Tuesday Blitz"]
[Site "Chess.com"]
[Date "2021.04.06"]
[Round "8"]
[White "BigAl"]
[Black "Ranindu2003"]
[Result "1-0"]
[WhiteElo "2500"]
[BlackElo "2578"]
[TimeControl "180+1"]
[EndTime "11:29:41 PDT"]
[Termination "BigAl won by resignation"]

1. Nf3 {[%clk 0:03:00.9]} 1... Nf6 {[%clk 0:02:59.8]} 2. g3 {[%clk 0:03:01.1]}
2... e6 {[%clk 0:02:59.6]} 3. Bg2 {[%clk 0:03:02]} 3... d5 {[%clk 0:02:59.7]} 4.
O-O {[%clk 0:03:02.9]} 4... Be7 {[%clk 0:03:00.4]} 5. d3 {[%clk 0:03:03.8]} 5...
O-O {[%clk 0:03:00.9]} 6. Nbd2 {[%clk 0:03:04.6]} 6... a5 {[%clk 0:03:01.8]} 7.
a4 {[%clk 0:03:03.5]} 7... c5 {[%clk 0:03:00.5]} 8. e4 {[%clk 0:03:03.5]} 8...
Nc6 {[%clk 0:03:01.2]} 9. Re1 {[%clk 0:03:03.2]} 9... Re8 {[%clk 0:02:57]} 10.
e5 {[%clk 0:02:58]} 10... Nd7 {[%clk 0:02:56.9]} 11. Nf1 {[%clk 0:02:58.6]}
11... f6 {[%clk 0:02:56.8]} 12. exf6 {[%clk 0:02:58.3]} 12... Bxf6 {[%clk
0:02:55.6]} 13. h4 {[%clk 0:02:54.7]} 13... e5 {[%clk 0:02:51.4]} 14. Ng5 {[%clk
0:02:49.6]} 14... Nb6 {[%clk 0:02:44.5]} 15. Qh5 {[%clk 0:02:39.5]} 15... h6
{[%clk 0:02:33]} 16. c3 {[%clk 0:02:00.7]} 16... Bf5 {[%clk 0:02:09.6]} 17. Be3
{[%clk 0:01:44.3]} 17... hxg5 {[%clk 0:01:52.1]} 18. hxg5 {[%clk 0:01:39.3]}
18... g6 {[%clk 0:01:51.3]} 19. Qh4 {[%clk 0:01:36.6]} 19... Be7 {[%clk
0:01:37.2]} 20. Rad1 {[%clk 0:01:33]} 20... Bf8 {[%clk 0:01:21.5]} 21. g4 {[%clk
0:01:17.3]} 21... Be6 {[%clk 0:01:16.3]} 22. f4 {[%clk 0:01:16.2]} 22... exf4
{[%clk 0:01:11.3]} 23. Bxf4 {[%clk 0:01:16.3]} 23... Qd7 {[%clk 0:01:07.8]} 24.
Ne3 {[%clk 0:00:53.2]} 24... Bd6 {[%clk 0:00:55.4]} 25. Bxd6 {[%clk 0:00:45]}
25... Qxd6 {[%clk 0:00:56.3]} 26. Qh6 {[%clk 0:00:45.4]} 26... Bf7 {[%clk
0:00:50]} 27. Nf5 {[%clk 0:00:30.9]} 27... Qf8 {[%clk 0:00:48.4]} 28. Qh2 {[%clk
0:00:27.7]} 28... gxf5 {[%clk 0:00:44.9]} 29. gxf5 {[%clk 0:00:28.1]} 29... Qg7
{[%clk 0:00:45.6]} 30. g6 {[%clk 0:00:24.6]} 30... Bxg6 {[%clk 0:00:44.3]} 31.
fxg6 {[%clk 0:00:24.9]} 31... Qxg6 {[%clk 0:00:45.2]} 32. Qc7 {[%clk 0:00:25.2]}
32... Rxe1+ {[%clk 0:00:08.5]} 33. Rxe1 {[%clk 0:00:24.9]} 33... Nd8 {[%clk
0:00:02.8]} 34. Qxc5 {[%clk 0:00:18.3]} 34... Nf7 {[%clk 0:00:02.8]} 35. Re3
{[%clk 0:00:14.5]} 35... Rc8 {[%clk 0:00:03.3]} 36. Qe7 {[%clk 0:00:12.2]} 36...
Rf8 {[%clk 0:00:02.9]} 37. Qh4 {[%clk 0:00:12.1]} 37... Kg7 {[%clk 0:00:01.7]}
38. Rg3 {[%clk 0:00:12.4]} 38... Rh8 {[%clk 0:00:02.5]} 39. Rxg6+ {[%clk
0:00:12.7]} 39... Kxg6 {[%clk 0:00:03.4]} 40. Qg3+ {[%clk 0:00:12.1]} 40... Ng5
{[%clk 0:00:04.3]} 41. Qd6+ {[%clk 0:00:11.6]} 41... Kf5 {[%clk 0:00:04.6]} 42.
Qxb6 {[%clk 0:00:11.5]} 42... Kg4 {[%clk 0:00:05.4]} 43. Qd4+ {[%clk 0:00:10.3]}
43... Kg3 {[%clk 0:00:05.2]} 44. Qe5+ {[%clk 0:00:10.3]} 44... Kg4 {[%clk
0:00:05.9]} 45. Qxh8 {[%clk 0:00:10.9]} 1-0

[Event "*** Titled Tuesday Blitz"]
[Site "Chess.com"]
[Date "2021.04.06"]
[Round "8"]
[White "elohunter1999"]
[Black "K_A_S_T_O_R"]
[Result "1/2-1/2"]
[WhiteElo "2539"]
[BlackElo "2773"]
[TimeControl "180+1"]
[EndTime "11:29:42 PDT"]
[Termination "Game drawn - insufficient material"]

1. d4 {[%clk 0:03:00.9]} 1... Nf6 {[%clk 0:01:54.1]} 2. c4 {[%clk 0:02:58.7]}
2... e6 {[%clk 0:01:54.1]} 3. Nf3 {[%clk 0:02:58.1]} 3... c5 {[%clk 0:01:53.4]}
4. d5 {[%clk 0:02:57]} 4... d6 {[%clk 0:01:53.9]} 5. Nc3 {[%clk 0:02:56.2]} 5...
exd5 {[%clk 0:01:54.3]} 6. cxd5 {[%clk 0:02:56]} 6... g6 {[%clk 0:01:54.8]} 7.
Bf4 {[%clk 0:02:49.3]} 7... Bg7 {[%clk 0:01:54]} 8. Qa4+ {[%clk 0:02:45.6]} 8...
Bd7 {[%clk 0:01:54.1]} 9. Qb3 {[%clk 0:02:44.6]} 9... Qc7 {[%clk 0:01:54.6]} 10.
e4 {[%clk 0:02:31.1]} 10... O-O {[%clk 0:01:54.1]} 11. Nd2 {[%clk 0:02:20]}
11... Nh5 {[%clk 0:01:53.3]} 12. Be3 {[%clk 0:02:19.6]} 12... f5 {[%clk
0:01:53.8]} 13. exf5 {[%clk 0:02:18.6]} 13... Bxf5 {[%clk 0:01:53.7]} 14. Be2
{[%clk 0:02:16.9]} 14... Nf6 {[%clk 0:01:53.7]} 15. h3 {[%clk 0:02:09.4]} 15...
Na6 {[%clk 0:01:46.4]} 16. a3 {[%clk 0:02:09.4]} 16... Rab8 {[%clk 0:01:38.2]}
17. O-O {[%clk 0:02:07.1]} 17... Qd8 {[%clk 0:01:15]} 18. Nb5 {[%clk 0:02:03.3]}
18... Nc7 {[%clk 0:01:13]} 19. Nxa7 {[%clk 0:01:51.1]} 19... Ncxd5 {[%clk
0:00:57.8]} 20. Bc4 {[%clk 0:01:47.8]} 20... Be6 {[%clk 0:00:57.4]} 21. Bg5
{[%clk 0:01:37]} 21... Bf7 {[%clk 0:00:35.9]} 22. Bxd5 {[%clk 0:01:25.5]} 22...
Bxd5 {[%clk 0:00:35.2]} 23. Bxf6 {[%clk 0:01:25.5]} 23... Bxb3 {[%clk
0:00:35.2]} 24. Bxd8 {[%clk 0:01:25.6]} 24... Ba4 {[%clk 0:00:30.3]} 25. Be7
{[%clk 0:01:16]} 25... Rfe8 {[%clk 0:00:29]} 26. Bxd6 {[%clk 0:01:14.3]} 26...
Rbd8 {[%clk 0:00:29]} 27. Nc4 {[%clk 0:01:01.8]} 27... b5 {[%clk 0:00:28.7]} 28.
Nc6 {[%clk 0:00:44.6]} 28... bxc4 {[%clk 0:00:19.4]} 29. Nxd8 {[%clk 0:00:43.4]}
29... Rxd8 {[%clk 0:00:19.6]} 30. Bxc5 {[%clk 0:00:42.3]} 30... Bxb2 {[%clk
0:00:20.3]} 31. Rac1 {[%clk 0:00:35.4]} 31... c3 {[%clk 0:00:20.5]} 32. Be3
{[%clk 0:00:31.5]} 32... Bxc1 {[%clk 0:00:18.6]} 33. Rxc1 {[%clk 0:00:30.7]}
33... c2 {[%clk 0:00:19.5]} 34. Kh2 {[%clk 0:00:27.9]} 34... Rd1 {[%clk
0:00:19.7]} 35. Kg3 {[%clk 0:00:26.2]} 35... Kf7 {[%clk 0:00:19.9]} 36. Kf4
{[%clk 0:00:25.9]} 36... Ke6 {[%clk 0:00:20.1]} 37. h4 {[%clk 0:00:20.5]} 37...
Kd5 {[%clk 0:00:18.9]} 38. Kg5 {[%clk 0:00:17.2]} 38... Kc4 {[%clk 0:00:16]} 39.
Kh6 {[%clk 0:00:16.6]} 39... Kb3 {[%clk 0:00:13.2]} 40. Kxh7 {[%clk 0:00:11.1]}
40... Kb2 {[%clk 0:00:13.2]} 41. Rxc2+ {[%clk 0:00:11.3]} 41... Bxc2 {[%clk
0:00:13.7]} 42. g4 {[%clk 0:00:10.7]} 42... Kxa3 {[%clk 0:00:12]} 43. Bg5 {[%clk
0:00:10.4]} 43... Rg1 {[%clk 0:00:11]} 44. f3 {[%clk 0:00:10.3]} 44... Kb3
{[%clk 0:00:11.2]} 45. Kg7 {[%clk 0:00:09.2]} 45... Kc4 {[%clk 0:00:11.7]} 46.
h5 {[%clk 0:00:09.5]} 46... gxh5 {[%clk 0:00:11.1]} 47. Be3 {[%clk 0:00:09.3]}
47... hxg4 {[%clk 0:00:11.1]} 48. Bxg1 {[%clk 0:00:09.1]} 48... gxf3 {[%clk
0:00:11.6]} 49. Kf6 {[%clk 0:00:09.2]} 49... Kd3 {[%clk 0:00:12]} 50. Kg5 {[%clk
0:00:09.7]} 50... Ke2 {[%clk 0:00:12.9]} 51. Ba7 {[%clk 0:00:09.1]} 51... f2
{[%clk 0:00:12.8]} 52. Bxf2 {[%clk 0:00:08.9]} 1/2-1/2

[Event "*** Titled Tuesday Blitz"]
[Site "Chess.com"]
[Date "2021.04.06"]
[Round "8"]
[White "WiktoriaPOL"]
[Black "Andrakhanova"]
[Result "0-1"]
[WhiteElo "2048"]
[BlackElo "2252"]
[TimeControl "180+1"]
[EndTime "11:29:42 PDT"]
[Termination "Andrakhanova won on time"]

1. e4 {[%clk 0:03:00.9]} 1... c5 {[%clk 0:02:59.6]} 2. d4 {[%clk 0:02:59.8]}
2... cxd4 {[%clk 0:02:59.2]} 3. c3 {[%clk 0:03:00.4]} 3... d3 {[%clk 0:02:59.7]}
4. Bxd3 {[%clk 0:03:00]} 4... Nf6 {[%clk 0:02:59.8]} 5. Nf3 {[%clk 0:02:51.5]}
5... d5 {[%clk 0:02:57.3]} 6. exd5 {[%clk 0:02:50.2]} 6... Nxd5 {[%clk
0:02:58.2]} 7. O-O {[%clk 0:02:50.1]} 7... Nc6 {[%clk 0:02:57.3]} 8. Be4 {[%clk
0:02:43]} 8... e6 {[%clk 0:02:55.4]} 9. Bxd5 {[%clk 0:02:40.8]} 9... exd5 {[%clk
0:02:54.3]} 10. Re1+ {[%clk 0:02:39.9]} 10... Be7 {[%clk 0:02:54.5]} 11. Bg5
{[%clk 0:02:38.6]} 11... f6 {[%clk 0:02:53.5]} 12. Bh4 {[%clk 0:02:37.3]} 12...
O-O {[%clk 0:02:53.3]} 13. Nbd2 {[%clk 0:02:36.7]} 13... Bf5 {[%clk 0:02:39.5]}
14. Nb3 {[%clk 0:02:32.7]} 14... Re8 {[%clk 0:02:27.7]} 15. Nbd4 {[%clk
0:02:26.9]} 15... Be4 {[%clk 0:02:25.6]} 16. Bg3 {[%clk 0:02:19.4]} 16... Bd6
{[%clk 0:02:17]} 17. Bxd6 {[%clk 0:02:14]} 17... Qxd6 {[%clk 0:02:17.9]} 18.
Nxc6 {[%clk 0:02:11.6]} 18... bxc6 {[%clk 0:02:16.7]} 19. c4 {[%clk 0:02:06]}
19... Bxf3 {[%clk 0:01:58.8]} 20. Qxf3 {[%clk 0:02:04]} 20... dxc4 {[%clk
0:01:45.8]} 21. Rad1 {[%clk 0:02:02]} 21... Rxe1+ {[%clk 0:01:44.7]} 22. Rxe1
{[%clk 0:02:01.3]} 22... Rd8 {[%clk 0:01:38.7]} 23. Qc3 {[%clk 0:01:55.2]} 23...
Qd2 {[%clk 0:01:26.1]} 24. Qxc4+ {[%clk 0:01:53.1]} 24... Kh8 {[%clk 0:01:26.3]}
25. Qe4 {[%clk 0:01:51.3]} 25... h6 {[%clk 0:01:20.4]} 26. b3 {[%clk 0:01:27.6]}
26... Qxa2 {[%clk 0:01:13.1]} 27. Qxc6 {[%clk 0:01:26]} 27... Qxb3 {[%clk
0:01:06.7]} 28. h3 {[%clk 0:00:55.9]} 28... Qd3 {[%clk 0:00:50.4]} 29. Qc7
{[%clk 0:00:46.8]} 29... Rd7 {[%clk 0:00:43.9]} 30. Qb8+ {[%clk 0:00:38.5]}
30... Kh7 {[%clk 0:00:41]} 31. Qe8 {[%clk 0:00:28.3]} 31... a5 {[%clk
0:00:35.2]} 32. Ra1 {[%clk 0:00:22.2]} 32... a4 {[%clk 0:00:33.4]} 33. Qa8
{[%clk 0:00:10]} 33... Rd4 {[%clk 0:00:33.2]} 34. Kh2 {[%clk 0:00:07.1]} 34...
Qc4 {[%clk 0:00:26.3]} 35. Qa5 {[%clk 0:00:03.4]} 35... Rf4 {[%clk 0:00:21.4]}
36. f3 {[%clk 0:00:02.3]} 36... Qd4 {[%clk 0:00:15.9]} 37. Kg3 {[%clk
0:00:02.3]} 37... Kg6 {[%clk 0:00:08.7]} 38. Ra2 {[%clk 0:00:02.3]} 38... Rf5
{[%clk 0:00:08.1]} 39. Qa6 {[%clk 0:00:01.9]} 39... Qe5+ {[%clk 0:00:08]} 40.
Kf2 {[%clk 0:00:01.9]} 40... Qc5+ {[%clk 0:00:08.2]} 41. Kf1 {[%clk 0:00:01.7]}
41... Qc1+ {[%clk 0:00:08.1]} 42. Kf2 {[%clk 0:00:01.8]} 42... Rf4 {[%clk
0:00:07.3]} 43. Qb6 {[%clk 0:00:01.2]} 43... Qc4 {[%clk 0:00:05.9]} 0-1